{"text_format":"1","workbook":"xlsx","n_sheets":8,"sheets":["Deckblatt","Vermögensübersicht","Journal Verkehrskonto","Übersicht nach Kategorie ","Zusammenzug nach Kategorien","Einnahmekategorien","Ausgabekategorien","Beilagen"],"not_rendered":{"charts":0,"images":0,"macros":1,"external_links":0,"defined_names":7,"comments":0,"pivot_tables":2},"unopened":[],"bounds":{"document_bytes":16777216,"sheet_cells":100000,"rows_first":2000,"rows_last":500,"rows_between":2000,"halvings":0,"cell_chars":16384,"cell_head_chars":4096},"cells_cut":0,"cells_raw":0,"read":"whole","date_system":"1900"}

{"sheet":"Deckblatt","index":0,"n_rows":18,"n_cols":5,"rows_kept":18,"cut":false,"hidden":false,"merged":[]}
[]
[]
[]
[null,null,"Name"]
[null,null,"Vorname"]
[null,null,"Geburtsdatum"]
[null,null,"Heimatort"]
[null,null,"Adresse"]
[]
[]
[]
[]
[null,null,"Beistand:"]
[null,null,"Adresse"]
[]
[]
[]
[null,null,"für die Zeit ",null,{"$f":"TEXT(Vermögensübersicht!C3,\"TT.MM.JJJJ\")&\" bis \"&TEXT(Vermögensübersicht!D3,\"TT.MM.JJJJ\")","v":"00.01.1900 bis 00.01.1900"}]

{"sheet":"Vermögensübersicht","index":1,"n_rows":17,"n_cols":6,"rows_kept":17,"cut":false,"hidden":false,"merged":[[1,0,1,1],[1,5,2,5]]}
[]
["Aktiven",null,"Anfangsbestand","Schlussbestand",null,"Veränderung"]
["Kontobezeichnung","IBAN"]
[null,null,null,null,null,{"$f":"D4-C4","v":0}]
[null,null,null,null,null,{"$f":"D5-C5","v":0}]
[null,null,null,null,null,0]
[null,null,null,null,null,0]
[null,null,null,null,null,0]
[null,null,null,null,null,0]
["Passiven",null,null,null,null,0]
[null,null,null,null,null,0]
[null,null,null,null,null,0]
[null,null,null,null,null,0]
[null,null,null,null,null,0]
[null,null,null,null,null,0]
[]
["Total",null,{"$f":"SUM(C4:C15)","v":0},{"$f":"SUM(D4:D15)","v":0},null,{"$f":"SUM(F4:F15)","v":0}]

{"sheet":"Journal Verkehrskonto","index":2,"n_rows":3,"n_cols":7,"rows_kept":3,"cut":false,"hidden":false,"merged":[]}
["Beleg","Datum","Einnahmen","Ausgaben","Belegtext / Beschreibung","Kategorie","0"]
[null,null,null,null,null,null,{"$f":"G1+Tabelle1[[#This Row],[Einnahmen]]-Tabelle1[[#This Row],[Ausgaben]]","v":0}]
["Ergebnis",null,{"$f":"SUBTOTAL(109,Tabelle1[Einnahmen])","v":0},{"$f":"SUBTOTAL(109,Tabelle1[Ausgaben])","v":0},null,null,{"$f":"G1+Tabelle1[[#Totals],[Einnahmen]]-Tabelle1[[#Totals],[Ausgaben]]","v":0}]

{"sheet":"Übersicht nach Kategorie ","index":3,"n_rows":3,"n_cols":3,"rows_kept":3,"cut":false,"hidden":false,"merged":[]}
["Zeilenbeschriftungen","Summe von Einnahmen","Summe von Ausgaben"]
["(Leer)"]
["Gesamtergebnis"]

{"sheet":"Zusammenzug nach Kategorien","index":4,"n_rows":3,"n_cols":6,"rows_kept":3,"cut":false,"hidden":false,"merged":[]}
["Kategorie","Datum","Belegtext / Beschreibung","Beleg","Eingang","Ausgang"]
["(Leer)","(Leer)","(Leer)","(Leer)"]
["Gesamtergebnis"]

{"sheet":"Einnahmekategorien","index":5,"n_rows":16,"n_cols":2,"rows_kept":16,"cut":false,"hidden":false,"merged":[]}
["Einnahmen","Beschreibung / Beispiele"]
["AHV/IV","IV und AHV Renten"]
["Diverses"]
["Ergänzungsleistungen/Beihilfe","Ergänzungsleistungen der Gemeinden"]
["Hilflosenentschädigung"]
["Kursgewinn aus Wertschriften"]
["Lohn"]
["Mieteinnahmen"]
["Renten","weitere Renten (Pensionskasse, 3. Säule etc.)"]
["Rückerstattung Krankenkosten von EL/ZL","Kostenübernahme von Selbstbehalt und Franchise durch die EL/ZL der Wohngemeinde"]
["Rückerstattungen von Krankenkasse","Kostenübernahme von Behandlungen durch die Krankenkasse"]
["Sozialhilfe"]
["Steuergutschriften"]
["Unterhaltsbeiträge","Kinderalimente, Frauenalimente, Männeralimente"]
["Versicherungseinnahmen","Haftpflichtschadenfälle, Rückerstattung von Versicherungsprämien"]
["Zinserträge aus Sparheft"]

{"sheet":"Ausgabekategorien","index":6,"n_rows":19,"n_cols":2,"rows_kept":19,"cut":false,"hidden":false,"merged":[]}
["Ausgaben","Beschreibung / Beispiele2"]
["AHV-Beiträge","Nichterwerbstätigebeiträge der AHV"]
["Arzt-/Zahnarztkosten","Rechnungen von Ärzten, Spitälern, Laborrechnugen etc.."]
["Hypothekarzinsen"]
["Kontospesen (Bank, Post etc.)","Spesen bei der Bank"]
["Krankenkassenprämien","Prämien der Grundversicherung oder allenfalls Zusatzversicherung"]
["Krankenkassen-Selbstbehalte"]
["Kursverlust aus Wertschriften"]
["Lebensunterhalt","\"Taschengeld\", Kleidergeld, Feriengeld"]
["Liegenschaftenunterhalt","Unterhaltsarbeiten an  Liegenschaften"]
["Miete und Nebenkosten","Mietkosten"]
["ÖV Abo / Fahrkosten","Fahrkosten, Promobil, SBB GA"]
["Pension-/Heimkosten","komplette Heimrechnungen"]
["Schuldzinsen"]
["Steuern","Bundes-, Kantons- und Gemeindesteuern"]
["Strom / Wasser"]
["Telekommunikation / TV","TV Abo, SERAFE, Handy-Abo"]
["Versicherungen","Hausrat-, Hafpflicht-, Rechtsschutz-, Gebäudeversicherung etc."]
["Weitere Abos","Zeitschriftenabo etc."]

{"sheet":"Beilagen","index":7,"n_rows":26,"n_cols":2,"rows_kept":26,"cut":false,"hidden":false,"merged":[]}
["Beilagen:"]
[]
[null,"Sämtliche Buchungsbelege in einem Ordner"]
[]
[null,"Detaillierte monatliche Bankkontoauszüge (oder PostFinance) für die gesamte Berichtsperiode"]
[]
[null,"Eingereichte Steuererklärungen während der Berichtsperiode mit allen Beilagen"]
[null,"(Saldobelege der Banken, Steuerausweise der Krankenkasse, Verfügungen der Nichterwerbstätigenbeiträge, etc.)"]
[]
[null,"Sämtliche Verfügungen betreffend die Sozialversicherungen (Zusatzleistungen, Hilfslosenentschädigung, etc.)"]
[]
[null,"Sämtliche Verfügungen der Zusatzleistungen betreffend die Krankheits- und Behinderungskosten"]
[]
[null,"Kopien Versicherungspolicen (Hausrat, Krankenkasse, etc.)"]
[]
[null,"Kopien Heimverträge / Mietverträge"]
[]
[null,"Kopie Grundbuchauszug"]
[]
[null,"Aktueller Betreibungsregisterauszug"]
[]
[null,"________________________________"]
[]
[null,"________________________________"]
[]
[null,"________________________________"]